bitfinex/quotes_BTCUSD_20250211
["timestamp","ask_amount","ask_price","bid_price","bid_amount"]
[1739286509214,0.08256914,96829.0,96801.0,0.023]
[1739286509426,0.08256914,96829.0,96802.0,0.30316799]
[1739286509628,0.08256914,96829.0,96811.0,0.206588]
[1739286509917,0.08256914,96829.0,96810.0,0.21544556]
[1739286509918,0.00928,96840.0,96812.0,0.10353634]
[1739286510119,0.08256914,96841.0,96839.0,0.154895]
[1739286510322,0.0453,96867.0,96850.0,0.154878]
[1739286510323,0.01,96867.0,96850.0,0.154878]
[1739286510578,0.01,96874.0,96856.0,0.154869]
[1739286510782,0.0453,96884.0,96845.0,0.206513]
[1739286510783,0.08256914,96873.0,96863.0,0.154856]
[1739286511004,0.08256914,96873.0,96841.0,0.19963159]
[1739286511190,0.00825691,96872.0,96842.0,0.10353599]
[1739286511392,0.00013272,96873.0,96851.0,0.00022386]
[1739286511747,0.0001066,96860.0,96851.0,0.00022386]
[1739286512182,0.154864,96859.0,96842.0,0.09272751]
[1739286512333,0.0001066,96860.0,96842.0,0.09272751]
[1739286512746,0.0001066,96860.0,96858.0,0.148865]
[1739286512954,0.0021066,96860.0,96858.0,0.148865]
[1739286514627,0.0021066,96860.0,96858.0,0.143865]
[1739286514781,0.0021066,96860.0,96859.0,0.10250365]
[1739286515195,0.0001066,96860.0,96859.0,0.10250365]
[1739286515658,0.0011066,96860.0,96859.0,0.13888148]
[1739286515836,0.0011066,96860.0,96859.0,0.10250365]
[1739286516036,0.0001066,96860.0,96859.0,0.10250365]
[1739286516439,0.0011066,96860.0,96858.0,0.00936865]
[1739286517066,0.0001066,96860.0,96859.0,0.002]
[1739286517192,0.0011066,96860.0,96859.0,0.014]
[1739286517798,0.0011066,96860.0,96859.0,0.0515355]
[1739286518043,0.0011066,96860.0,96859.0,0.14053582]
[1739286518226,0.0011066,96860.0,96859.0,0.34016741]
[1739286518402,0.0011066,96860.0,96859.0,0.33713524]
[1739286518601,0.0001066,96860.0,96859.0,0.32513524]
[1739286519068,0.0011066,96860.0,96859.0,0.32513524]
[1739286519286,0.0011066,96860.0,96859.0,0.33513524]
[1739286519440,0.08256914,96890.0,96889.0,0.154816]
[1739286519838,0.206373,96912.0,96898.0,0.154801]
[1739286520041,0.11058379,96944.0,96909.0,0.154784]
[1739286520042,0.0787068,96939.0,96909.0,0.154784]
[1739286520258,0.0787068,96939.0,96900.0,0.21544556]
[1739286520452,0.0787068,96939.0,96904.0,0.154792]
[1739286520453,0.154766,96920.0,96904.0,0.154792]
[1739286520636,0.00825691,96921.0,96899.0,0.19963159]
[1739286521011,0.00044522,96922.0,96920.0,0.154765]
[1739286521336,0.00044522,96922.0,96906.0,0.023]
[1739286521569,0.00044522,96922.0,96920.0,0.154766]
[1739286521769,0.154776,96914.0,96900.0,0.19963159]
[1739286522018,0.206354,96921.0,96900.0,0.19963159]
[1739286522019,0.00044522,96922.0,96900.0,0.19963159]
[1739286522172,0.154796,96902.0,96900.0,0.19963159]
[1739286522366,0.206379,96909.0,96900.0,0.19963159]
[1739286522578,0.001,96910.0,96888.0,0.206422]
[1739286522925,0.001,96910.0,96879.0,0.19963159]
[1739286522926,0.15,96902.0,96879.0,0.19963159]
[1739286523126,0.356394,96902.0,96880.0,0.19963159]
[1739286523292,0.154808,96894.0,96881.0,0.19963159]
[1739286523545,0.15,96908.0,96882.0,0.19963159]
[1739286523872,0.02525036,96902.0,96884.0,0.154824]
[1739286524090,0.15,96894.0,96872.0,0.19963159]
[1739286524330,0.15,96878.0,96861.0,0.19963159]
[1739286524519,0.21544556,96890.0,96860.0,0.08256914]
[1739286524723,0.15,96879.0,96851.0,0.19963159]
[1739286525003,0.15,96862.0,96852.0,0.19963159]
[1739286525236,0.0304858,96861.0,96853.0,0.154872]
[1739286525446,0.0304858,96861.0,96854.0,0.206496]
[1739286525702,0.0304858,96861.0,96859.0,0.154864]
[1739286525903,0.15,96862.0,96859.0,0.154864]
[1739286526111,0.15,96866.0,96859.0,0.154864]
[1739286526317,0.15,96866.0,96857.0,0.154866]
[1739286526521,0.206445,96878.0,96856.0,0.00022386]
[1739286526522,0.15,96863.0,96856.0,0.00022386]
[1739286526747,0.15,96863.0,96857.0,0.154866]
[1739286526992,0.001,96861.0,96859.0,0.163863]
[1739286527419,0.01911009,96862.0,96861.0,0.177861]
[1739286527686,0.01911009,96862.0,96861.0,0.28036465]
[1739286528060,0.02866494,96862.0,96861.0,0.28036465]
[1739286528326,0.02866494,96862.0,96861.0,0.154861]
[1739286528528,0.02866494,96862.0,96857.0,0.003]
[1739286528744,0.154864,96860.0,96859.0,0.003]
[1739286528943,0.15,96861.0,96857.0,0.003]
[1739286529145,0.15,96861.0,96856.0,0.00022386]
[1739286529354,0.01911009,96860.0,96856.0,0.00022386]
[1739286529599,0.17397309,96860.0,96859.0,0.01]
[1739286529808,0.01911009,96860.0,96859.0,0.01]
[1739286530024,0.02866494,96860.0,96856.0,0.00022386]
[1739286530231,0.154866,96858.0,96856.0,0.00022386]
[1739286530459,0.154866,96858.0,96856.0,0.00722386]
[1739286530669,0.15,96857.0,96856.0,0.00722386]
[1739286530894,0.16911009,96857.0,96856.0,0.00022386]
[1739286531095,0.27161374,96857.0,96856.0,0.00022386]
[1739286531250,0.32633772,96857.0,96856.0,0.00022386]
[1739286531688,0.17866494,96857.0,96856.0,0.00022386]
[1739286531995,0.02866494,96857.0,96856.0,0.00322386]
[1739286532209,0.17866494,96857.0,96856.0,0.00822386]
[1739286532373,0.17866494,96857.0,96856.0,0.00522386]
[1739286532578,0.25331463,96857.0,96856.0,0.00022386]
[1739286532755,0.17866494,96857.0,96856.0,0.00022386]
[1739286532959,0.18566494,96857.0,96856.0,0.00122386]
[1739286533285,0.02611009,96857.0,96856.0,0.00122386]
[1739286533498,0.01911009,96857.0,96856.0,0.15509286]
[1739286533692,0.02311009,96857.0,96856.0,0.15509286]
[1739286534028,0.01911009,96857.0,96856.0,0.15509286]
[1739286534246,0.01911009,96857.0,96856.0,0.00022386]
[1739286534453,0.002,96857.0,96856.0,0.00022386]
[1739286534573,0.154864,96859.0,96856.0,0.00022386]
[1739286534780,0.0154864,96859.0,96856.0,0.00022386]
[1739286534987,0.15,96861.0,96856.0,0.00022386]
[1739286535183,0.35172729,96939.0,96856.0,0.00022386]
[1739286535184,0.206445,96878.0,96856.0,0.00022386]
[1739286535398,0.15,96863.0,96856.0,0.00222386]
[1739286535814,0.15,96863.0,96858.0,0.154865]
[1739286536007,0.15,96863.0,96856.0,0.00222386]
[1739286536008,0.15,96863.0,96856.0,0.20871486]
[1739286536212,0.15,96863.0,96857.0,0.154866]
[1739286536663,0.15,96865.0,96858.0,0.154865]
[1739286536813,0.304854,96865.0,96856.0,0.36158186]
[1739286537010,0.001,96863.0,96856.0,0.15609086]
[1739286537222,0.001,96863.0,96856.0,0.00122386]
[1739286537426,0.051132,96864.0,96856.0,0.00122386]
[1739286537626,0.154867,96857.0,96856.0,0.00122386]
[1739286537858,0.15,96871.0,96856.0,0.00122386]
[1739286538130,0.15,96869.0,96856.0,0.00022386]
[1739286538337,0.00069327,96853.0,96851.0,0.154876]
[1739286538536,0.00069327,96853.0,96847.0,0.20651]
[1739286538736,0.00069327,96853.0,96848.0,0.154881]
[1739286538940,0.00069327,96853.0,96852.0,0.154875]
[1739286539687,0.00169327,96853.0,96852.0,0.154875]
[1739286540232,0.00069327,96853.0,96852.0,0.154875]
[1739286540449,0.00069327,96853.0,96852.0,0.165875]
[1739286540661,0.00169327,96853.0,96852.0,0.168875]
[1739286540781,0.00169327,96853.0,96852.0,0.165875]
[1739286541240,0.00169327,96853.0,96852.0,0.168875]
[1739286541450,0.00169327,96853.0,96852.0,0.59585532]
[1739286541654,0.00169327,96853.0,96852.0,0.68312307]
[1739286542456,0.00069327,96853.0,96852.0,0.58131024]
[1739286542860,0.00169327,96853.0,96852.0,0.59331024]
[1739286543293,0.0001066,96890.0,96868.0,0.154849]
[1739286543500,0.0001066,96890.0,96868.0,0.50101625]
[1739286543697,0.0001066,96890.0,96868.0,0.49998424]
[1739286543892,0.0001066,96890.0,96868.0,0.60248789]
[1739286544119,0.0001066,96890.0,96868.0,0.49998424]
[1739286544490,0.00213344,96869.0,96868.0,0.51898424]
[1739286544874,4.4e-07,96869.0,96868.0,0.59358424]
[1739286545108,0.0001066,96890.0,96889.0,0.177816]
[1739286545318,0.0001066,96890.0,96889.0,0.48098303]
[1739286545524,0.0001066,96890.0,96889.0,0.47995124]
[1739286546836,0.0011066,96890.0,96889.0,0.10250365]
[1739286547047,0.0011066,96890.0,96889.0,0.27826154]
[1739286547250,0.0011066,96890.0,96889.0,0.17575789]
[1739286547674,0.0011066,96890.0,96889.0,0.28629339]
[1739286547875,0.0001066,96890.0,96889.0,0.28526154]
[1739286548932,0.0001066,96890.0,96889.0,0.30826154]
[1739286549142,0.0011066,96890.0,96889.0,0.32326154]
[1739286549801,0.0001066,96890.0,96889.0,0.30826154]
[1739286550025,0.0011066,96890.0,96889.0,0.31626154]
[1739286550255,0.0011066,96890.0,96889.0,0.30026154]
[1739286552992,0.0011066,96890.0,96889.0,0.04294189]
[1739286553245,0.0011066,96890.0,96889.0,0.19775789]
[1739286554314,0.0011066,96890.0,96889.0,0.022]
[1739286554723,0.21231376,96890.0,96889.0,0.022]
[1739286555350,0.21131376,96890.0,96889.0,0.007]
[1739286555733,0.21231376,96890.0,96889.0,0.017]
[1739286556242,0.1559206,96890.0,96889.0,0.017]
[1739286556593,0.1559206,96890.0,96889.0,0.01]
[1739286556921,0.1559206,96890.0,96889.0,0.015]
[1739286557098,0.0011066,96890.0,96889.0,0.015]
[1739286557460,0.1559206,96890.0,96889.0,0.015]
[1739286557664,0.22779536,96890.0,96889.0,0.015]
[1739286558109,0.1559206,96890.0,96889.0,0.015]
[1739286560727,0.16646476,96890.0,96889.0,0.015]
[1739286561134,0.01165076,96890.0,96889.0,0.169816]
[1739286562346,0.01165076,96890.0,96889.0,0.015]
[1739286562565,0.0011066,96890.0,96889.0,0.015]
[1739286562865,0.1559206,96890.0,96889.0,0.015]
[1739286563268,0.02033169,96890.0,96889.0,0.015]
[1739286563838,0.17514569,96890.0,96889.0,0.015]
[1739286564047,0.02033169,96890.0,96889.0,0.015]
[1739286564661,0.02033169,96890.0,96889.0,0.169816]
[1739286564862,0.02033169,96890.0,96889.0,0.015]
[1739286565480,0.17514569,96890.0,96889.0,0.015]
[1739286565685,0.02033169,96890.0,96889.0,0.015]
[1739286566397,0.0011066,96890.0,96889.0,0.015]
[1739286567164,0.0011066,96890.0,96889.0,0.89822077]
[1739286567341,0.0489,96932.0,96890.0,0.023]
[1739286567582,0.01098839,96914.0,96913.0,0.154777]
[1739286567759,0.01098839,96914.0,96913.0,0.697077]
[1739286567760,0.00044522,96914.0,96913.0,0.697077]
[1739286568566,0.00044522,96914.0,96913.0,0.79958065]
[1739286568775,0.00044522,96914.0,96913.0,0.9250843]
[1739286569798,0.00144522,96914.0,96913.0,0.83758065]
[1739286570161,0.00144522,96914.0,96913.0,0.8586951]
[1739286571608,0.00144522,96914.0,96913.0,0.8656951]
[1739286572384,0.00144522,96914.0,96913.0,0.8756951]
[1739286572581,0.00144522,96914.0,96913.0,0.8686951]
[1739286572755,0.00044522,96914.0,96913.0,0.8536951]
[1739286572965,0.00044522,96914.0,96913.0,0.8686951]
[1739286573333,0.00044522,96914.0,96913.0,0.8536951]
[1739286574525,0.00044522,96914.0,96913.0,0.8276951]
[1739286574846,0.00044522,96914.0,96913.0,0.8426951]
[1739286575106,0.00044522,96914.0,96913.0,0.8356951]
[1739286575473,0.00044522,96914.0,96913.0,0.8276951]
[1739286575644,0.00044522,96914.0,96913.0,0.8206951]
[1739286576053,0.00055182,96914.0,96913.0,0.8276951]
[1739286576264,0.00055182,96914.0,96913.0,0.8416951]
[1739286577293,0.00055182,96914.0,96913.0,0.8346951]
[1739286577694,0.00055182,96914.0,96913.0,0.58441445]
[1739286577890,0.00055182,96914.0,96913.0,0.57741445]
[1739286578198,0.00055182,96914.0,96913.0,0.57041445]
[1739286578409,0.00055182,96914.0,96913.0,0.72519145]
[1739286578609,0.00055182,96914.0,96913.0,0.73419145]
[1739286579094,0.00055182,96914.0,96913.0,0.72519145]
[1739286579372,0.00055182,96914.0,96913.0,0.8416951]
[1739286579892,0.00055182,96914.0,96913.0,0.89156848]
[1739286580120,0.00055182,96914.0,96913.0,1.00296848]
[1739286580496,0.00055182,96914.0,96913.0,0.9530951]
[1739286581153,0.00055182,96914.0,96913.0,0.8646951]
[1739286581320,0.00055182,96914.0,96913.0,0.8746951]
[1739286584342,0.0001068,96939.0,96938.0,0.154738]
[1739286584515,0.00024028,96939.0,96938.0,0.697038]
[1739286585787,0.00024028,96939.0,96938.0,0.705038]
[1739286585940,0.00024028,96939.0,96938.0,0.710038]
[1739286586148,0.00024028,96939.0,96938.0,0.8016738]
[1739286586355,0.00024028,96939.0,96938.0,0.7936738]
[1739286586594,0.00024028,96939.0,96938.0,0.702038]
[1739286587415,0.00024028,96939.0,96938.0,0.697038]
[1739286587636,0.00024028,96939.0,96938.0,0.699038]
[1739286587838,0.00024028,96939.0,96938.0,0.701038]
[1739286588018,0.00024028,96939.0,96938.0,0.697038]
[1739286588435,0.00024028,96939.0,96938.0,0.709038]
[1739286588905,0.00024028,96939.0,96938.0,0.72218994]
[1739286589111,0.00024028,96939.0,96938.0,0.72518994]
[1739286589563,0.00024028,96939.0,96938.0,0.73018994]
[1739286590628,0.00024028,96939.0,96938.0,0.93519724]
[1739286591146,0.00024028,96939.0,96938.0,0.92719724]
[1739286591359,0.00024028,96939.0,96938.0,0.92219724]
[1739286591597,0.00024028,96939.0,96938.0,0.93919724]
[1739286591793,0.00024028,96939.0,96938.0,0.83669359]
[1739286592017,0.00024028,96939.0,96938.0,0.82669359]
[1739286592222,0.00024028,96939.0,96938.0,0.83769359]
[1739286593418,0.00024028,96939.0,96938.0,0.86069359]
[1739286593753,0.00024028,96939.0,96938.0,0.84969359]
[1739286593960,0.00024028,96939.0,96938.0,0.86469359]
[1739286594591,0.00024028,96939.0,96938.0,0.84269359]
[1739286594797,0.00024028,96939.0,96938.0,0.88506803]
[1739286594997,0.00024028,96939.0,96938.0,0.89706803]
[1739286595196,0.00024028,96939.0,96938.0,0.89006803]
[1739286595400,0.00024028,96939.0,96938.0,0.87806803]
[1739286595610,0.00024028,96939.0,96938.0,0.89506803]
[1739286595804,0.00024028,96939.0,96938.0,0.88806803]
[1739286596175,0.0001066,96957.0,96956.0,0.177709]
[1739286596374,0.0001066,96957.0,96956.0,0.33924075]
[1739286598024,0.0001066,96957.0,96956.0,0.35424075]
[1739286598334,0.0660066,96975.0,96969.0,0.154688]
[1739286598562,0.0660066,96975.0,96970.0,0.5423]
[1739286598563,0.06613998,96975.0,96970.0,0.5423]
[1739286599796,0.356241,96974.0,96970.0,0.5423]
[1739286599927,0.154685,96971.0,96970.0,0.5423]
[1739286601210,0.41718865,96971.0,96970.0,0.5483]
[1739286601447,0.54078865,96971.0,96970.0,0.003]
[1739286601584,0.54078865,96971.0,96939.0,0.5423]
[1739286601585,0.01,96962.0,96939.0,0.5423]
[1739286601822,0.15472,96949.0,96948.0,0.08256914]
[1739286602155,0.15472,96949.0,96934.0,0.206325]
[1739286602156,0.428326,96945.0,96944.0,0.02048735]
[1739286602364,0.154731,96942.0,96941.0,0.5423]
[1739286602577,0.154731,96942.0,96941.0,0.5632334]
[1739286602782,0.206306,96944.0,96924.0,0.69706]
[1739286602783,0.15,96941.0,96924.0,0.69706]
[1739286602991,0.154745,96934.0,96927.0,0.154755]
[1739286603196,0.0489906,96941.0,96924.0,0.5423]
[1739286603400,0.0489906,96941.0,96924.0,0.54243348]
[1739286603612,0.511047,96940.0,96939.0,0.002]
[1739286603940,0.01,96955.0,96933.0,0.02036964]
[1739286604174,0.1236,96958.0,96934.0,0.206325]
[1739286604389,0.1236,96958.0,96936.0,0.154741]
[1739286604630,0.1236,96958.0,96941.0,0.007]
[1739286604837,0.15472,96950.0,96942.0,0.154731]
[1739286605004,0.1236,96958.0,96935.0,0.5423]
[1739286605215,0.22610365,96958.0,96935.0,0.5423]
[1739286605623,0.154725,96946.0,96939.0,0.154736]
[1739286605828,0.43237865,96958.0,96941.0,0.157732]
[1739286606022,0.43237865,96958.0,96935.0,0.5423]
[1739286606023,0.206277,96957.0,96935.0,0.748623]
[1739286606251,0.22610365,96958.0,96945.0,0.02081259]
[1739286606469,0.206277,96957.0,96945.0,0.02081259]
[1739286606797,0.206292,96950.0,96945.0,0.02081259]
[1739286606962,0.206279,96956.0,96945.0,0.02081259]
[1739286607163,0.1236,96958.0,96945.0,0.02081259]
[1739286607365,0.16,96968.0,96949.0,0.154719]
[1739286607366,0.154704,96959.0,96949.0,0.154719]
[1739286607549,0.154717,96951.0,96945.0,0.02081259]
[1739286607736,0.154717,96951.0,96945.0,0.17553859]
[1739286608089,0.206279,96957.0,96948.0,0.15472]
[1739286608303,0.154714,96953.0,96946.0,0.154724]
[1739286608469,0.154716,96952.0,96946.0,0.154724]
[1739286608686,0.15,96964.0,96945.0,0.17653759]
[1739286608869,0.154715,96952.0,96945.0,0.02181259]
[1739286609092,0.154715,96952.0,96946.0,0.154725]
[1739286609310,0.154718,96951.0,96948.0,0.001]
[1739286609515,0.154715,96953.0,96948.0,0.001]
[1739286609936,0.206271,96960.0,96948.0,0.001]
[1739286609937,0.154716,96952.0,96948.0,0.001]
[1739286610341,0.15,96969.0,96948.0,0.001]
[1739286610473,0.206261,96965.0,96956.0,0.154709]
[1739286610679,0.154717,96952.0,96949.0,0.5423]
[1739286610863,0.001,96964.0,96949.0,0.5423]
[1739286611240,0.206257,96966.0,96949.0,0.5423]
[1739286611443,0.206262,96964.0,96951.0,0.154716]
[1739286611583,0.154706,96958.0,96950.0,0.154717]
[1739286611803,7.796e-05,96964.0,96949.0,0.5423]
[1739286611988,0.154709,96956.0,96949.0,0.697019]
[1739286612194,0.15,96960.0,96949.0,0.5423]
[1739286612592,0.154705,96959.0,96952.0,0.154715]
[1739286612833,0.206272,96959.0,96949.0,0.5423]
[1739286613039,0.10250365,96959.0,96949.0,0.5423]
[1739286613234,0.206285,96953.0,96949.0,0.5423]
[1739286613439,0.154718,96950.0,96949.0,0.5423]
[1739286614004,0.10250365,96959.0,96949.0,0.5423]
[1739286614419,0.154718,96950.0,96949.0,0.5453]
[1739286614853,0.1908187,96950.0,96949.0,0.001]
[1739286615065,0.154718,96950.0,96949.0,0.001]
[1739286615269,0.304718,96950.0,96949.0,0.001]
[1739286615482,0.386818,96950.0,96949.0,0.001]
[1739286615705,0.386818,96950.0,96949.0,0.002]
[1739286616557,0.4677571,96950.0,96949.0,0.002]
[1739286616731,0.58026075,96950.0,96949.0,0.002]
[1739286617002,0.314722,96948.0,96947.0,0.5423]
[1739286617215,0.41722565,96948.0,96947.0,0.5423]
[1739286618469,0.41722565,96948.0,96947.0,0.5433]
[1739286619179,0.41722565,96948.0,96947.0,0.5443]
[1739286619399,0.41722565,96948.0,96947.0,0.002]
[1739286622381,0.41722565,96948.0,96947.0,0.001]
[1739286622756,0.41922565,96948.0,96947.0,0.001]
[1739286622952,0.42885398,96948.0,96947.0,0.001]
[1739286623157,0.304725,96946.0,96945.0,0.00022365]
[1739286623360,0.40722865,96946.0,96945.0,0.00022365]
[1739286623561,0.41722865,96946.0,96945.0,0.00022365]
[1739286623831,0.49932865,96946.0,96945.0,0.00022365]
[1739286623959,0.49932865,96946.0,96945.0,6.5e-07]
[1739286623960,0.54432865,96946.0,96945.0,6.5e-07]
[1739286624167,0.54964805,96946.0,96945.0,6.5e-07]
[1739286624437,0.54964805,96946.0,96914.0,0.08256914]
[1739286624438,0.01,96915.0,96914.0,0.06215579]
[1739286624620,0.43327765,96915.0,96914.0,0.06215579]
[1739286624773,0.314795,96902.0,96901.0,0.62486914]
[1739286624981,0.41729865,96902.0,96901.0,0.62486914]
[1739286625281,0.41729865,96902.0,96901.0,0.49829999]
[1739286625696,0.43663313,96902.0,96901.0,0.49829999]
[1739286626318,0.44626146,96902.0,96901.0,0.49829999]
[1739286626756,0.44626146,96902.0,96901.0,0.50029999]
[1739286628385,0.44626146,96902.0,96901.0,0.005]
[1739286630033,0.44626146,96902.0,96901.0,0.003]
[1739286630256,0.44626146,96902.0,96886.0,0.49829999]
[1739286630257,0.304819,96887.0,96886.0,0.45752384]
[1739286630576,0.3353009,96887.0,96886.0,0.45752384]
[1739286630881,0.314819,96887.0,96886.0,0.45752384]
[1739286631087,0.314821,96886.0,96885.0,0.02060303]
[1739286631372,0.314825,96883.0,96882.0,0.45752384]
[1739286631508,0.41732865,96883.0,96882.0,0.45752384]
[1739286632771,0.42695698,96883.0,96882.0,0.45752384]
[1739286632991,0.44621359,96883.0,96882.0,0.45752384]
[1739286634482,0.304827,96882.0,96881.0,0.00022386]
[1739286634689,0.40733065,96882.0,96881.0,0.00022386]
[1739286635506,0.43658726,96882.0,96881.0,0.00022386]
[1739286635731,0.44621559,96882.0,96881.0,0.00022386]
[1739286638469,0.44921559,96882.0,96881.0,0.00022386]
[1739286640165,0.44621559,96882.0,96881.0,0.00022386]
[1739286640385,0.44921559,96882.0,96881.0,0.00022386]
[1739286640823,0.44621559,96882.0,96881.0,0.00022386]
[1739286641224,0.44821559,96882.0,96881.0,0.00022386]
[1739286641644,0.44621559,96882.0,96881.0,0.00022386]
[1739286642120,0.44921559,96882.0,96881.0,0.00022386]
[1739286644835,0.44621559,96882.0,96881.0,0.00022386]
[1739286645041,0.44721559,96882.0,96881.0,0.00022386]
[1739286645536,0.44621559,96882.0,96881.0,0.00022386]
[1739286645924,0.45721559,96882.0,96881.0,0.00122386]
[1739286646168,0.45421559,96882.0,96881.0,0.00122386]
[1739286647227,0.42695898,96882.0,96881.0,0.00022386]
[1739286647635,0.42795898,96882.0,96881.0,0.00022386]
[1739286649949,0.42795898,96882.0,96864.0,0.154855]
[1739286649950,0.15,96874.0,96864.0,0.154855]
[1739286650149,0.15,96881.0,96865.0,0.5423]
[1739286650347,0.15484,96875.0,96865.0,0.697154]
[1739286650569,0.15,96876.0,96865.0,0.5423]
[1739286650763,0.00962833,96873.0,96865.0,0.5423]
[1739286651776,0.00962833,96873.0,96865.0,0.5523]
[1739286652150,0.00962833,96873.0,96865.0,0.5443]
[1739286652378,0.15,96872.0,96865.0,0.5443]
[1739286652580,0.304844,96872.0,96870.0,0.02047829]
[1739286652779,0.15962833,96872.0,96870.0,0.02047829]
[1739286653631,0.15962833,96872.0,96870.0,0.00044522]
[1739286653632,0.154845,96871.0,96870.0,0.00044522]
[1739286653837,0.41734865,96871.0,96870.0,0.00044522]
[1739286654206,0.42697698,96871.0,96870.0,0.00844522]
[1739286654853,0.42697698,96871.0,96870.0,0.01244522]
[1739286655074,0.47387698,96871.0,96870.0,0.01244522]
[1739286655255,0.49327852,96871.0,96870.0,0.00044522]
[1739286656287,0.47387698,96871.0,96870.0,0.00044522]
[1739286656647,0.45487698,96871.0,96870.0,0.00044522]
[1739286657256,0.44524865,96871.0,96870.0,0.00044522]
[1739286657812,0.39834865,96871.0,96870.0,0.00044522]
[1739286658733,0.001,96871.0,96870.0,0.69759122]
[1739286658950,0.001,96871.0,96870.0,0.80009487]
[1739286659133,0.001,96871.0,96870.0,0.82309487]
[1739286659329,0.001,96871.0,96870.0,0.84425129]
[1739286659557,0.001,96871.0,96870.0,0.74174764]
[1739286660207,0.356423,96889.0,96870.0,0.58690164]
[1739286660415,0.01,96874.0,96870.0,0.56390164]
[1739286660615,0.001,96871.0,96870.0,0.56390164]
[1739286660904,0.01065621,96871.0,96870.0,0.56390164]
[1739286661121,0.00965621,96871.0,96870.0,0.71874764]
[1739286661531,0.00965621,96871.0,96870.0,0.72174764]
[1739286661726,0.01065621,96871.0,96870.0,0.75174764]
[1739286661929,0.01065621,96871.0,96870.0,1.01592659]
[1739286662111,0.00965621,96871.0,96870.0,1.00892659]
[1739286662392,0.01165621,96871.0,96870.0,1.03292659]
[1739286662596,0.0001066,96886.0,96885.0,0.154822]
[1739286662773,0.0001066,96886.0,96885.0,0.5423]
[1739286663002,0.0001066,96886.0,96885.0,0.697122]
[1739286663217,0.0001066,96886.0,96885.0,0.5423]
[1739286663417,0.0001066,96886.0,96885.0,0.71273364]
[1739286663553,0.0001066,96886.0,96885.0,0.96153729]
[1739286664571,0.0001066,96886.0,96885.0,0.96453729]
[1739286664774,0.0011066,96886.0,96885.0,0.95992565]
[1739286664969,0.0011066,96886.0,96885.0,0.95692565]
[1739286665316,0.0011066,96886.0,96885.0,0.96392565]
[1739286666781,0.0011066,96886.0,96885.0,0.97392565]
[1739286667660,0.0001066,96886.0,96885.0,1.00170731]
[1739286667821,0.0011066,96886.0,96885.0,1.02070731]
[1739286668007,0.0011066,96886.0,96885.0,0.97492565]
[1739286668204,0.0011066,96886.0,96885.0,0.96792565]
[1739286668408,6e-07,96886.0,96885.0,0.95592565]
[1739286668614,0.01,96935.0,96924.0,0.154759]
[1739286668821,0.01,96935.0,96925.0,0.5423]
[1739286669115,0.01,96938.0,96932.0,0.154747]
[1739286669318,0.01,96938.0,96933.0,0.5423]
[1739286669740,0.01008258,96938.0,96933.0,0.5423]
[1739286670197,0.01008258,96938.0,96934.0,0.02069486]
[1739286670695,0.01808258,96938.0,96934.0,0.02069486]
[1739286670897,0.154739,96937.0,96933.0,0.5433]
[1739286671100,0.01808258,96938.0,96933.0,0.56245553]
[1739286671101,0.01008258,96938.0,96933.0,0.56245553]
[1739286671277,0.15474,96937.0,96933.0,0.56245553]
[1739286671820,0.01208258,96938.0,96933.0,0.5423]
[1739286672029,0.00208258,96938.0,96934.0,0.5423]
[1739286672231,0.00208258,96938.0,96937.0,0.154739]
[1739286672879,8.258e-05,96938.0,96937.0,0.154739]
[1739286673254,0.00208258,96938.0,96934.0,0.5423]
[1739286673556,0.00208258,96938.0,96937.0,0.154739]
[1739286673772,8.258e-05,96938.0,96937.0,0.154739]
[1739286673974,0.00108258,96938.0,96937.0,0.166739]
[1739286674335,0.00108258,96938.0,96937.0,0.29224265]
[1739286674725,0.00108258,96938.0,96937.0,0.29724265]
[1739286675349,0.00108258,96938.0,96937.0,0.017]
[1739286675553,0.00108258,96938.0,96937.0,0.171739]
[1739286675887,0.00108258,96938.0,96937.0,0.714039]
[1739286676099,0.00108258,96938.0,96937.0,0.5593]
[1739286677265,0.00108258,96938.0,96937.0,0.714039]
[1739286677480,0.00108258,96938.0,96937.0,0.5593]
[1739286678112,0.00118918,96938.0,96937.0,0.714039]
[1739286678644,0.00118918,96938.0,96937.0,0.5593]
[1739286678805,0.00118918,96938.0,96937.0,0.714039]
[1739286681565,0.15592718,96938.0,96937.0,0.3593]
[1739286681770,0.15592718,96938.0,96929.0,0.3593]
[1739286681771,0.31475,96930.0,96929.0,0.3593]
[1739286681974,0.31475,96930.0,96880.0,0.1434419]
[1739286681975,0.01,96919.0,96908.0,0.3593]
[1739286682136,0.0812,96923.0,96908.0,0.3593]
[1739286682137,0.164778,96913.0,96912.0,0.02098681]
[1739286682507,0.01,96913.0,96912.0,0.02098681]
[1739286682699,0.154782,96910.0,96909.0,0.3593]
[1739286682887,0.01,96906.0,96879.0,0.16076914]
[1739286683113,0.15,96908.0,96891.0,0.5423]
[1739286683114,0.01,96898.0,96891.0,0.5423]
[1739286683233,0.154793,96903.0,96892.0,0.15481]
[1739286683435,0.366381,96908.0,96891.0,0.5423]
[1739286683628,0.01,96903.0,96897.0,0.02108389]
[1739286683830,0.154798,96901.0,96897.0,0.02108389]
[1739286684218,0.154798,96901.0,96897.0,0.02152911]
[1739286684410,0.01,96903.0,96897.0,0.02152911]
[1739286684738,0.01,96903.0,96897.0,0.02452911]
[1739286684989,0.15,96905.0,96898.0,0.00103188]
[1739286685191,0.15,96905.0,96897.0,0.02152911]
[1739286685391,0.01,96907.0,96897.0,0.02452911]
[1739286685587,0.01,96916.0,96897.0,0.02452911]
[1739286685799,0.01,96922.0,96897.0,0.02256087]
[1739286686004,0.01,96915.0,96903.0,0.153792]
[1739286686230,0.16,96915.0,96900.0,0.206397]
[1739286686433,0.154781,96912.0,96902.0,0.154794]
[1739286686642,0.154776,96915.0,96901.0,0.154797]
[1739286687005,0.01907536,96914.0,96897.0,0.02152911]
[1739286687302,0.154774,96916.0,96905.0,0.15479]
[1739286687505,0.154769,96919.0,96908.0,0.154784]
[1739286687710,0.206336,96929.0,96909.0,0.5423]
[1739286687865,0.206336,96929.0,96910.0,0.5423]
[1739286687866,0.004,96912.0,96910.0,0.5423]
[1739286689331,0.154777,96914.0,96910.0,0.5423]
[1739286689499,0.21597175,96917.0,96910.0,0.5423]
[1739286689500,0.154774,96915.0,96910.0,0.5423]
[1739286690314,0.00960775,96913.0,96910.0,0.5423]